Cogmind - Beta 15 @@@ ROGUE MODE // 2025.08.04 @ 11:22:25 Player: beans Result: Destroyed by Y-45 Defender with Heavy Assault Rifle Performance ------------- Evolutions (1) 500 Regions Visited (2) 400 Robots Destroyed (6) 30 Value Destroyed (128) 128 Prototype IDs (1) 20 Alien Tech Used (0) 0 Bonus (0) 0 TOTAL SCORE: 1078 Bonus ------- None Cogmind --------- Core Integrity 0/400 Matter 300/300 Energy 100/100 System Corruption 0% Temperature Cool (9) Movement Core (150) Ox2 Location -9/Materials Parts ------- > --- POWER (1) -------- (None) > --- PROPULSION (4) --- (None) > --- UTILITY (2) ------ Small Storage Unit > --- WEAPON (2) ------- Improved Medium Laser > --- INVENTORY (8) ---- Mace Peak State ------------ > --- POWER ------------ (None) > --- PROPULSION ------- Improved Hover Unit Improved Hover Unit Improved Hover Unit > --- UTILITY ---------- Small Storage Unit > --- WEAPON ----------- (None) > --- INVENTORY -------- (None) [Rating: 7] Favorites ----------- Power Ion Engine Engine Ion Engine Propulsion Light Treads Treads Light Treads Hover Unit Improved Hover Unit Utility Small Storage Unit Storage Small Storage Unit Weapon EM Pulse Gun Energy Gun EM Pulse Gun Impact Weapon Mace Build | -11 -10 -9 ------- Run | Yrd Mat Mat Slots Evolved 2 | . . 2 Power . | . . . Propulsion 2 | . . 2 Utility . | . . . Weapon . | . . . Parts Attached 10 | 5 . 5 Power 1 | 1 . . Engine 1 | 1 . . Core . | . . . Reactor . | . . . Propulsion 5 | 2 . 3 Treads 2 | 2 . . Leg . | . . . Wheel . | . . . Hover 3 | . . 3 Flight . | . . . Utility 1 | 1 . . Device . | . . . Storage 1 | 1 . . Processor . | . . . Hackware . | . . . Protection . | . . . Artifact . | . . . Weapon 3 | 1 . 2 Energy Gun 2 | 1 . 1 Energy Cannon . | . . . Ballistic Gun . | . . . Ballistic Cannon . | . . . Launcher . | . . . Special Weapon . | . . . Impact Weapon 1 | . . 1 Slashing Weapon . | . . . Piercing Weapon . | . . . Special Melee Weapon . | . . . Unidentified Prototypes 1 | . . 1 Parts Lost 5 | . 2 3 Power 1 | . 1 . Propulsion 3 | . . 3 Utility . | . . . Weapon 1 | . 1 . Highest Loss Streak 3 | . 2 3 To Critical Strikes . | . . . Average Backups . | . . . Power . | . . . Propulsion . | . . . Utility . | . . . Weapon . | . . . Tool/Special . | . . . Unused Backups 1 | 1 . . Power . | . . . Propulsion 1 | 1 . . Utility . | . . . Weapon . | . . . Tool/Special . | . . . Average Slot Usage (%) 31 | . 53 20 Engine 3 | . 11 . Treads 5 | . 16 . Hover 3 | . . 5 Storage 11 | . 14 11 Energy Gun 5 | . 11 3 Peak Build Rating 7 | 5 5 7 Average Rating 3 | 3 3 3 On Entrance 2 | . 5 1 Naked Turns . | . . . Heaviest Build 12 | 12 12 8 Greatest Support 40 | 40 40 21 Greatest Overweight (x) 2 | . 2 2 Average Overweight (x) . | . . . Largest Inventory Capacity 8 | 8 8 8 Average Capacity 7 | 7 8 8 Most Carried 5 | 5 . 1 Average Carried . | . . . Final Capacity 8 | 8 8 8 Final Carried 1 | . . 1 Class Distribution -------------------- 100% | Mutant Dominant Class ---------------- Mutant | -10/Materials Mutant | -9/Materials Resources | -11 -10 -9 ----------- Run | Yrd Mat Mat Matter Collected 268 | 200 18 50 Remotely . | . . . Salvage Created 131 | . 53 78 Parts 5 | . 3 2 Haulers Intercepted . | . . . Recyclers Shooed . | . . . Parts Field Recycled . | . . . Retrieved Matter . | . . . Parts Self-Destructed . | . . . Prevented . | . . . Kills | -11 -10 -9 ------- Run | Yrd Mat Mat Combat Hostiles Destroyed 6 | . 2 4 Melee 2 | . . 2 Guns 3 | . 2 1 Classes Destroyed 2 | . 2 . Swarmer 4 | . 1 3 Grunt 2 | . 1 1 Best Kill Streak 4 | . 2 4 Combat Bots Only 4 | . 2 4 Max Kills in Single Turn 1 | . 1 1 Gunslinging . | . . . Exploded . | . . . Melee 1 | . . 1 Uniques/NPCs Destroyed . | . . . Combat | -11 -10 -9 -------- Run | Yrd Mat Mat Hostile Shots Fired 123 | . 41 82 Missed 38 | . 13 25 Hits 85 | . 28 57 Projectile 85 | . 28 57 Critical Strikes 1 | . . 1 Damage Taken 919 | 32 235 652 Core 514 | 16 92 406 Absorbed by Shields . | . . . Core Remaining (%) 74 | 93 56 . Volleys Fired 14 | 1 9 4 Largest 1 | 1 1 1 Hottest 56 | 40 40 56 Shots Fired 14 | 1 9 4 Gun 14 | 1 9 4 Cannon . | . . . Launcher . | . . . Special . | . . . Kinetic . | . . . Thermal 4 | . . 4 Explosive . | . . . Electromagnetic 10 | 1 9 . Robot Hit Streak 3 | 1 3 1 Robot Miss Streak 3 | . 3 . Penetration Max . | . . . Secondary Targets . | . . . Shots Hit Robots 10 | 1 4 5 Core Hits 7 | 1 2 4 Critical Kills . | . . . Critical Parts Destroyed 1 | . . 1 Critical Strikes 2 | . 1 1 Corrupt 1 | . 1 . Smash 1 | . . 1 Melee Attacks 7 | . . 7 Impact 7 | . . 7 Slashing . | . . . Piercing . | . . . Sneak Attacks . | . . . Combat Hostiles . | . . . Follow-up Attacks . | . . . Damage Inflicted 327 | 70 113 144 Guns 141 | 12 113 16 Cannons . | . . . Explosions 58 | 58 . . Melee 123 | . . 123 Ramming 5 | . . 5 Kinetic . | . . . Thermal 74 | 58 . 16 Explosive . | . . . Electromagnetic 125 | 12 113 . Impact 123 | . . 123 Slashing . | . . . Piercing . | . . . Highest Corruption . | . . . Average Corruption . | . . . Corruption Purged . | . . . Corruption Blocked . | . . . Overload Shots . | . . . Overflow Damage 34 | . . 34 Projectiles . | . . . Explosions . | . . . Melee 34 | . . 34 Knockbacks . | . . . Impact . | . . . Kinetic . | . . . Secondary . | . . . Self-Inflicted Damage 146 | 33 . 113 Shots 2 | 1 . 1 Rammed 3 | . . 3 Targets Rammed 3 | . . 3 Kicked . | . . . Crushed . | . . . Highest Temperature 12 | 12 . 6 Average Temperature 9 | 12 . 6 Received Heat Transfer 141 | . 9 132 Siege Activations . | . . . Martial Activations . | . . . Shielding Activations . | . . . Robots Disrupted . | . . . Combat Hostiles . | . . . Robots Corrupted 1 | . . 1 Combat Hostiles 1 | . . 1 Parts Fried . | . . . Impact Corruptions 2 | . . 2 Robots Melted . | . . . Combat Hostiles . | . . . Parts Melted . | . . . Heat Transferred 137 | 100 . 37 Parts Sabotaged . | . . . Parts Stolen . | . . . Parts Stripped . | . . . Power Chain Reactions 1 | 1 . . Alert | -11 -10 -9 ------- Run | Yrd Mat Mat Maximum Alert Level . | . . . Low Security (%) 100 | 100 100 100 Level 1 . | . . . Level 2 . | . . . Level 3 . | . . . Level 4 . | . . . Level 5 . | . . . High Security . | . . . Max Security . | . . . Peak Influence 112 | . 30 112 Initial . | . . . Average 18 | . 7 30 Influence Increases 192 | . 40 152 Destroy 0b10 Robot/C 120 | . 40 80 Destroy Leader 10 | . . 10 Disable Machine 30 | . . 30 Destroy Structure 17 | . . 17 Lose Combat Pursuer 15 | . . 15 Influence Decreases 100 | . 40 60 Time Decay 60 | . 20 40 Lost Part 40 | . 20 20 Squads Dispatched . | . . . Investigation . | . . . Extermination . | . . . Reinforcement . | . . . Assault . | . . . Garrison . | . . . Intercept . | . . . Searches Triggered . | . . . Construction Impeded . | . . . Haulers Reinforced . | . . . Active Scanning Responses . | . . . Cargo Convoy Interrupts . | . . . Stealth | -11 -10 -9 --------- Run | Yrd Mat Mat Distress Signals 1 | . 1 . Communications Jammed . | . . . Distress Signals . | . . . Times Spotted 12 | . 5 7 Peak Tracking Total 5 | . 4 5 Tactical Retreats 1 | . . 1 Traps | -11 -10 -9 ------- Run | Yrd Mat Mat Traps Triggered 2 | . 2 . Indirectly . | . . . Trap Hack Attempts . | . . . Triggered . | . . . Disarmed . | . . . Reprogrammed . | . . . Reused . | . . . Traps Extracted . | . . . Installed . | . . . Triggered . | . . . Machines | -11 -10 -9 ---------- Run | Yrd Mat Mat Machines Disabled 2 | . . 2 Max in Single Turn 2 | . . 2 Machines Repaired . | . . . Machines Dismantled . | . . . Machines Sabotaged . | . . . Overloaded Fab Kills . | . . . Hacking | -11 -10 -9 --------- Run | Yrd Mat Mat Machines Accessed . | . . . Terminals . | . . . Fabricators . | . . . Repair Stations . | . . . Recycling Units . | . . . Scanalyzers . | . . . Garrison Access . | . . . Total Hacks . | . . . Successful . | . . . Failed . | . . . Catastrophic . | . . . Database Lockouts . | . . . Manual . | . . . Terminals . | . . . Fabricators . | . . . Repair Stations . | . . . Recycling Units . | . . . Scanalyzers . | . . . Garrison Access . | . . . Terminal Hacks . | . . . Fabricator Hacks . | . . . Repair Station Hacks . | . . . Recycling Unit Hacks . | . . . Scanalyzer . | . . . Garrison Access Hacks . | . . . Unauthorized Hacks . | . . . Terminals . | . . . Fabricators . | . . . Repair Stations . | . . . Recycling Units . | . . . Scanalyzers . | . . . Garrison Access . | . . . Data Cores Recovered . | . . . Used . | . . . Hacking Detections . | . . . Full Trace Events . | . . . Feedback Events . | . . . Feedback Blocked . | . . . Robot Schematics Acquired . | . . . Robots Built . | . . . Authchips . | . . . Time . | . . . Total Robot Build Rating . | . . . Part Schematics Acquired . | . . . Parts Built . | . . . Authchips . | . . . Time . | . . . Total Part Build Rating . | . . . Parts Repaired . | . . . Time . | . . . Parts Recycled . | . . . Recycled Matter . | . . . Retrieved Matter . | . . . Retrieved Components . | . . . Parts Scanalyzed . | . . . Part Schematics Acquired . | . . . Parts Damaged . | . . . Bothacking | -11 -10 -9 ------------ Run | Yrd Mat Mat Used RIF Installer . | . . . Robots Hacked . | . . . Non-combat . | . . . Combat . | . . . Robot Hacks Applied . | . . . Relay Couplers Released . | . . . Fabnet Peak Effective % . | . . . Robots Rewired . | . . . Allies Hacked . | . . . Hacks Repelled . | . . . Allies | -11 -10 -9 -------- Run | Yrd Mat Mat Total Allies . | . . . Largest Group . | . . . Highest-Rated Group . | . . . Highest-Rated Ally . | . . . Total Orders . | . . . Ally Attacks . | . . . Total Damage . | . . . Kills . | . . . Allies Corrupted . | . . . Allies Melted . | . . . Intel | -11 -10 -9 ------- Run | Yrd Mat Mat Active Infowar (turns) . | . . . Robot Analysis Total . | . . . Derelict Logs Recovered . | . . . Drone Launches . | . . . Drone Recoveries . | . . . Exploration | -11 -10 -9 ------------- Run | Yrd Mat Mat Turns Passed 388 | 96 84 208 Spaces Moved 278 | 63 47 168 Core 139 | 16 16 107 Treads 78 | 47 31 . Legs . | . . . Wheels . | . . . Hover 61 | . . 61 Flight . | . . . Fastest Speed 50 | 50 100 52 Average Speed 110 | 132 140 94 Slowest Speed 160 | 160 160 150 Overloaded Moves . | . . . Propulsion Burnouts . | . . . Robots Hopped . | . . . Potential Cave-ins . | . . . Cave-ins Triggered . | . . . Exploration Rate (%) 10 | 3 14 15 Regions Visited 2 Branch Regions . Pre-discovered Areas . | . . . Known Exits Taken . | . . . Unknown Exits Taken 2 | 1 1 . Scrap Searched . | . . . Spaces Dug . | . . . Terrain Destroyed 30 | . . 30 Melee . | . . . Projectile . | . . . AOE 30 | . . 30 Terrain Rammed . | . . . Walls Destroyed . | . . . Machines Disabled . | . . . Actions | -11 -10 -9 --------- Run | Yrd Mat Mat Total 330 | 75 55 200 Wait 10 | . . 10 Move 276 | 62 46 168 Hop . | . . . Pick Up 8 | 6 . 2 Fast Attach 3 | . . 3 Attach 7 | 5 . 2 Detach 1 | . . 1 Swap . | . . . Drop 1 | 1 . . Fire 14 | 1 9 4 Melee 7 | . . 7 Ram 3 | . . 3 Kick . | . . . Crush . | . . . Escape Stasis . | . . . Rewire . | . . . Trap . | . . . Miscellaneous . | . . . Route ------- -11/Scrapyard -10/Materials -9/Materials History --------- Turn | Location | Event 5 | -11/Scrapyard | Discovered new exit (range 15) 97 | -11/Scrapyard | Entered Materials 177 | -10/Materials | Discovered new exit (range 5) 181 | -10/Materials | Entered another Materials area 181 | -9/Materials | Evolved 2 slots: Propulsion x2 317 | -9/Materials | Core integrity fell below 50% 322 | -9/Materials | Build established: Mutant 338 | -9/Materials | Lost 3 parts (3n) 351 | -9/Materials | Core integrity fell below 20% 389 | -9/Materials | Destroyed by Y-45 Defender with Heavy Assault Rifle Last Messages --------------- Acquired 19 matter. S-10 Pest suffers critical hit (Smash). Destroyed Flight Unit. S-10 Pest system corrupted by crushing effect. S-10 Pest destroyed. Acquired 14 matter. Acquired Prototype Energy Gun. Identified Imp. Medium Laser. G-34 Mercenary destroyed. Acquired 17 matter. K-01 Serf collects debris. Fusion Modulator explodes. Atomic Centrifuge disabled. T-07 Excavator is excavating. U-05 Engineer lays Concrete. U-05 Engineer builds a Wall. U-05 Engineer lays Concrete. U-05 Engineer builds a Wall. K-01 Serf collects debris. U-05 Engineer builds a Wall. Map ----- +----------------------------------------------------+ | ?????????????????????????????????????????????????? | | ?????????????????????????????????????????????????? | | ?????????????????????????????????????????????????? | | ?????????????????????????????????????????????????? | | ?????????????????????????????????????????????????? | | ?????????????????????????????????????????????????? | | ?????????????????????????????????????????????????? | | ?????????????????????????????????????????????????? | | ?????????????????? ??????????????????????????????? | | ????????????????? "?????????????????????????????? | | ????????????????? ?????????????????????????????? | | ????????????????? ????????????????????????????? | | ??????????####### ?????????????????????????????? | | ??????????# ?????????????????????????????? | | ??????????# ?????????????????????????????## | | ??????????+ ????????????????????????????? | | ??????????# ??????????????????????######## | | ??????????# ????#####?????????????# # | | ??????????# #?#### # ##????????????# # | | ??????????# #?# ###??????????# # | | ??????????# ###;;;;""" #??????????# # | | ??????????# k# " ##??????????# # | | ???????#### Y " #???????????? # | | ???????# # ##################+### | | ???????# # #u | | ???????# ### @ | | ?????# #?# ; | | ?????# # #### #?# ; ##### | | ???????#????# #?# ; #???# | | ????????????# #?# += #???# | | ????????????# #?##########+##### ########+##### | | ???????????? ?????????# % ## #??# # | | ???????????? ?????????# = ######??# # | | ???????????? ?????????# #???????# # | | ???????????? ?????????# #???????# + | | ???????????? ?????????#*% =#???????# # | | ???????????? ?????????#% #???????# # | | ???????????? ?????????#/ ! #???????# = # | | ???????????? ?????????#/!! #???????# = # | | ????????????????????????#/!! #???????# = # | | ????????????????????????######???????########## | | ??????????????????????????????????????????????#### | | ?????????????????????????????????????????????????? | | ?????????????????????????????????????????????????? | | ?????????????????????????????????????????????????? | | ?????????????????????????????????????????????????? | | ?????????????????????????????????????????????????? | | ?????????????????????????????????????????????????? | | ?????????????????????????????????????????????????? | | ?????????????????????????????????????????????????? | +----------------------------------------------------+ Best States ------------- Heat Dissipation 28 Energy Generation 10 Energy Capacity 250 Matter Stores 300 Matter Capacity 300 Sight Range 16 Terrain Scan Density 10 Evasion (%) 54 Recoil Reduction 2 Item Schematics ----------------- None Robot Schematics ------------------ None Fabricated ------------ Nothing Repaired ---------- Nothing Alien Tech Used ----------------- None Achievements -------------- None Challenges ------------ None Game ------ Seed DecoyFortressLegs Manual? 0 Play Time 00:05:30 Cumulative 77.9 hours Start 2025.08.03 @ 22:39:06 End 2025.08.04 @ 11:22:25 Sessions 1 Manual Loads 0 Difficulty Rogue Special Mode None Game No. 316 Rogue 316 Adventurer 0 Explorer 0 Win Type - Total 0 Types 0/0/0/0/0/0/0/0/0/0 Lore% 28 Gallery% 34 Achievement% 28 Wizard Run 0 Options --------- Layout 2 ASCII 0 Keyboard 0 Movement Mouse Keybinds 0 Fullscreen 2 Font 24/Smallcaps Map View 50x44 Zoom Use 0% Tactical HUD 0 Map Filters NONE Filters NONE Steam 1 RUN: 13302e3a-83ce-43c1-b3eb-ff99b1d718ef